bitfinex/quotes_ETHUSD_20250923
["timestamp","ask_amount","ask_price","bid_price","bid_amount"]
[1758598191782,0.7887,4185.5,4185.1,0.004]
[1758598192493,0.1192,4185.5,4185.1,0.004]
[1758598192687,0.1192,4185.2,4185.1,0.004]
[1758598193481,0.7887,4185.2,4185.1,0.004]
[1758598193683,0.87456128,4185.2,4185.1,0.004]
[1758598194214,3.69463335,4185.2,4185.1,0.004]
[1758598194415,3.91788324,4185.2,4185.1,0.004]
[1758598194577,4.4322176,4185.2,4185.1,0.004]
[1758598194895,0.85901117,4185.2,4185.1,0.004]
[1758598195095,1.61214553,4185.2,4185.1,0.004]
[1758598195296,4.4322176,4185.2,4185.1,0.004]
[1758598196207,2.04284553,4185.2,4185.1,0.004]
[1758598196407,4.4322176,4185.2,4185.1,0.004]
[1758598197202,8.6002176,4185.2,4185.1,0.004]
[1758598198093,3.7627176,4185.2,4185.1,0.004]
[1758598198294,8.6002176,4185.2,4185.1,0.004]
[1758598198975,12.45731719,4185.2,4185.1,0.004]
[1758598199979,11.6002176,4185.2,4185.1,0.004]
[1758598200690,17.8878313,4185.2,4185.1,0.004]
[1758598201016,19.8346313,4185.2,4185.1,0.004]
[1758598201904,21.90703538,4185.2,4185.1,0.004]
[1758598202238,14.88103538,4185.2,4185.1,0.004]
[1758598202373,5.11171933,4185.2,4185.1,0.004]
[1758598202572,1.51465967,4185.2,4185.1,0.2334]
[1758598202876,4.52519229,4185.2,4185.1,0.7002]
[1758598203109,5.03952665,4185.2,4185.1,0.7002]
[1758598203635,0.35719229,4185.2,4185.1,3.08962916]
[1758598203775,4.168,4185.5,4185.1,0.7002]
[1758598203976,0.13395675,4185.4,4185.2,0.6962]
[1758598205118,4.68241423,4185.5,4185.3,0.6962]
[1758598205407,0.1192,4185.6,4185.4,3.08540723]
[1758598205606,0.1192,4185.6,4185.3,2.3893089]
[1758598205809,0.1192,4185.6,4185.5,0.6962]
[1758598206021,0.51440367,4185.8,4185.5,3.08540081]
[1758598206196,0.1202,4186.1,4185.8,2.38902122]
[1758598206519,0.1202,4186.1,4185.9,2.38896844]
[1758598206706,0.001,4186.1,4186.0,3.10900458]
[1758598207723,0.001,4186.1,4186.0,6.99631543]
[1758598207883,0.001,4186.1,4186.0,6.20431543]
[1758598208087,0.001,4186.1,4186.0,12.43731543]
[1758598208287,0.001,4186.1,4186.0,9.43731543]
[1758598210798,0.001,4186.1,4186.0,3.20431543]
[1758598211002,0.001,4186.1,4186.0,9.43631543]
[1758598211948,0.001,4186.1,4186.0,7.37031543]
[1758598212289,0.001,4186.1,4185.8,4.45502438]
[1758598212290,0.001,4186.1,4185.4,0.2294]
[1758598212489,0.001,4186.1,4185.3,6.55531498]
[1758598212490,0.001,4186.1,4186.0,2.38891543]
[1758598212803,0.51290954,4188.0,4186.0,4.47880458]
[1758598213125,3.13934443,4188.3,4187.4,2.38811241]
[1758598213304,0.75170954,4188.3,4187.5,2.38805391]
[1758598213500,0.75170954,4188.3,4187.4,2.38806881]
[1758598213706,0.75170954,4188.3,4187.3,0.72008173]
[1758598213904,2.38775287,4188.1,4187.3,0.72008173]
[1758598214207,2.62657717,4188.0,4187.1,4.165]
[1758598214400,0.2388,4188.0,4187.1,4.165]
[1758598214604,0.2388,4188.0,4187.2,2.38821807]
[1758598215111,2.62660466,4188.0,4187.2,2.38821807]
[1758598215312,0.2388,4188.0,4187.1,4.165]
[1758598215508,0.2388,4188.0,4187.2,2.38821486]
[1758598215710,0.2388,4188.0,4187.1,6.55323267]
[1758598215946,4.165,4188.5,4187.2,0.7030823]
[1758598216237,2.38754869,4188.4,4187.3,2.38817376]
[1758598216530,2.38760548,4188.3,4187.4,0.02388116]
[1758598216738,0.021,4187.9,4187.5,0.2429]
[1758598216901,0.021,4187.9,4187.6,0.71278002]
[1758598217256,0.021,4187.9,4187.8,2.38788862]
[1758598217548,0.021,4187.9,4187.8,2.4117675]
[1758598217844,0.021,4187.9,4187.8,3.07678862]
[1758598218204,0.021,4187.9,4187.8,3.1006675]
[1758598218403,0.021,4187.9,4187.8,3.07678862]
[1758598221050,0.021,4187.9,4187.8,6.07678862]
[1758598221260,0.003,4188.7,4188.0,0.792]
[1758598221405,1e-08,4188.9,4188.8,3.17931856]
[1758598221754,1e-08,4188.9,4188.8,10.09621856]
[1758598221905,1e-08,4188.9,4188.8,3.86821856]
[1758598222104,1e-08,4188.9,4188.7,2.48302465]
[1758598222332,1e-08,4188.9,4188.8,6.66951856]
[1758598222534,1e-08,4188.9,4188.8,7.35841856]
[1758598224132,1e-08,4188.9,4188.8,0.1192]
[1758598224368,1e-08,4188.9,4188.8,7.35741856]
[1758598229969,1e-08,4188.9,4188.8,3.19541856]
[1758598230334,1e-08,4188.9,4188.8,8.73251856]
[1758598230736,0.70860001,4188.9,4188.8,0.1192]
[1758598231055,0.70860001,4188.9,4188.8,4.2802]
[1758598231365,1e-08,4188.9,4188.8,6.66751856]
[1758598232170,1e-08,4188.9,4188.8,2.50651856]
[1758598232377,0.70860001,4188.9,4188.8,0.1192]
[1758598232550,0.70860001,4188.9,4188.8,6.66651856]
[1758598232751,0.70860001,4188.9,4188.8,4.2792]
[1758598233050,0.70860001,4188.9,4188.8,6.66651856]
[1758598233237,0.70860001,4188.9,4188.0,2.38771762]
[1758598233238,0.70860001,4188.9,4188.0,2.065]
[1758598233573,0.7086,4188.8,4188.1,3.274]
[1758598233774,0.7086,4188.7,4188.2,3.274]
[1758598233959,1e-08,4188.9,4188.2,3.274]
[1758598233960,1e-08,4188.9,4188.3,4.16]
[1758598234165,1e-08,4188.9,4188.4,2.38754655]
[1758598234491,1e-08,4188.9,4188.4,3.07644655]
[1758598234642,1e-08,4188.9,4188.8,2.38731856]
[1758598234840,1e-08,4188.9,4188.8,6.54731856]
[1758598235160,1e-08,4188.9,4188.8,7.23621856]
[1758598235777,1e-08,4188.9,4188.8,3.07621856]
[1758598235960,1e-08,4188.9,4188.8,8.85521856]
[1758598236653,1e-08,4188.9,4188.8,8.61231856]
[1758598236848,1e-08,4188.9,4188.8,8.85521856]
[1758598237075,1e-08,4188.9,4188.8,9.30121856]
[1758598237666,1e-08,4188.9,4188.8,8.61231856]
[1758598237867,1e-08,4188.9,4188.8,9.30121856]
[1758598239700,1e-08,4189.0,4188.9,2.38726157]
[1758598239901,1e-08,4189.0,4188.9,3.07616157]
[1758598241600,1e-08,4189.0,4188.9,8.85316157]
[1758598242721,1e-08,4189.0,4188.9,9.29916157]
[1758598243023,1e-08,4189.0,4188.9,8.85316157]
[1758598243383,1e-08,4189.0,4188.9,2.50646157]
[1758598243626,1e-08,4189.0,4188.9,8.72946157]
[1758598243918,1e-08,4189.0,4188.9,8.97236157]
[1758598244084,1e-08,4189.0,4188.9,8.72946157]
[1758598244485,1e-08,4189.0,4188.9,8.82512984]
[1758598245889,1e-08,4189.1,4189.0,2.38720458]
[1758598246102,1e-08,4189.1,4189.0,3.05270458]
[1758598246506,1e-08,4189.1,4189.0,6.78380458]
[1758598246990,1e-08,4189.1,4189.0,2.38720458]
[1758598247187,0.69360001,4189.1,4189.0,8.61020458]
[1758598247423,1e-08,4189.1,4189.0,8.61020458]
[1758598247630,0.24650001,4189.1,4189.0,8.61020458]
[1758598247792,0.24650001,4189.1,4188.9,0.09566827]
[1758598247793,0.69360001,4189.1,4188.9,0.09566827]
[1758598247989,1.34139677,4189.0,4188.9,2.38726157]
[1758598248209,1.56468899,4189.0,4188.9,1.126]
[1758598248827,1.56468899,4189.0,4188.9,3.51326157]
[1758598249128,2.20455715,4189.0,4188.9,6.54526157]
[1758598250231,1.56468899,4189.0,4188.9,6.54526157]
[1758598251127,0.87108899,4189.0,4188.9,6.54526157]
[1758598251432,0.64779677,4189.0,4188.9,6.54526157]
[1758598251646,0.64779677,4189.0,4188.9,6.78286157]
[1758598251797,0.51390988,4189.0,4188.9,7.21076157]
[1758598252148,0.51390988,4189.0,4188.9,6.54526157]
[1758598252431,0.51390988,4189.0,4188.9,7.21076157]
[1758598252631,1e-08,4189.1,4189.0,2.38720458]
[1758598252809,1e-08,4189.1,4189.0,3.05270458]
[1758598255119,1e-08,4189.1,4189.0,2.38720458]
[1758598255338,0.64336829,4190.2,4189.0,2.38720458]
[1758598255339,1.28040408,4191.5,4191.4,2.38583766]
[1758598255498,1.28040408,4193.0,4191.5,0.2376]
[1758598255700,1.30040408,4193.9,4192.7,2.3850979]
[1758598256031,0.1192,4193.6,4192.8,8.75009143]
[1758598256355,0.6936,4192.8,4192.6,4.158]
[1758598256530,0.82709419,4192.7,4192.6,4.158]
[1758598256728,0.82709419,4192.7,4192.6,6.54315479]
[1758598257248,1.28040408,4193.8,4192.8,2.38504102]
[1758598257450,0.7136,4192.9,4192.8,4.171]
[1758598257962,0.84697153,4192.9,4192.8,4.171]
[1758598258130,0.7136,4192.9,4192.8,4.171]
[1758598258333,0.02,4192.9,4192.8,6.55604102]
[1758598258526,0.02,4192.9,4192.8,7.22154102]
[1758598258922,0.02,4193.9,4193.8,2.38447231]
[1758598259118,0.02,4193.9,4193.8,6.55547231]
[1758598259352,0.7136,4193.9,4193.8,4.171]
[1758598259856,0.7136,4193.9,4192.7,2.38505838]
[1758598260183,0.7136,4193.9,4193.0,2.38492124]
[1758598260184,0.6936,4193.8,4193.0,2.38492124]
[1758598260334,0.02,4193.9,4192.6,2.78089128]
[1758598260335,0.82660072,4193.7,4193.1,4.174]
[1758598260520,0.6936,4193.6,4193.0,4.174]
[1758598260728,0.6936,4193.5,4192.9,4.174]
[1758598260935,0.826608,4193.4,4192.0,2.064]
[1758598261118,1.04830329,4193.3,4191.8,0.71702663]
[1758598261322,15.762386,4193.5,4191.8,3.17002663]
[1758598261323,1.57053362,4193.2,4191.8,3.17002663]
[1758598261576,3.11130329,4193.1,4192.0,2.38548986]
[1758598261872,3.43328709,4193.0,4191.8,2.453]
[1758598262035,0.35470329,4192.9,4191.8,2.453]
[1758598262241,0.6936,4192.8,4191.8,2.453]
[1758598262537,0.6936,4192.7,4191.8,2.453]
[1758598262736,0.6936,4192.6,4191.5,0.7170592]
[1758598262936,0.6237,4193.3,4191.3,6.237]
[1758598262937,0.82657131,4192.5,4191.3,6.237]
[1758598263232,0.6936,4192.4,4191.5,2.38576617]
[1758598263438,0.6936,4192.3,4191.5,2.38576617]
[1758598263646,0.6936,4192.3,4191.3,4.174]
[1758598263827,0.82657627,4192.2,4191.1,0.02]
[1758598264026,2.38543927,4192.1,4191.1,0.02]
[1758598264276,0.30790393,4192.0,4191.1,0.02]
[1758598264443,0.6936,4191.9,4191.1,0.04386008]
[1758598264767,0.2465,4192.7,4191.2,7.22443713]
[1758598264968,0.2465,4192.7,4191.3,0.6655]
[1758598265260,2.063,4193.3,4191.2,4.173]
[1758598265261,0.6936,4192.6,4191.4,0.02385837]
[1758598265441,0.6936,4192.6,4191.2,4.4106]
[1758598265638,0.6936,4192.6,4191.7,2.38561376]
[1758598265841,0.6936,4192.6,4191.8,2.38556053]
[1758598266039,0.27566,4192.5,4191.7,0.02385666]
[1758598266242,0.4471,4193.0,4192.0,0.1192]
[1758598266454,0.2465,4193.3,4192.3,2.38529278]
[1758598266654,0.2465,4193.3,4192.7,2.38509443]
[1758598266963,0.2465,4193.7,4193.0,2.38488525]
[1758598267303,0.02,4193.9,4193.1,2.38484024]
[1758598267433,0.02,4193.9,4192.8,0.2376]
[1758598267633,0.02,4193.9,4193.2,4.177]
[1758598268277,0.02,4193.9,4193.5,2.38463449]
[1758598268434,0.02,4193.9,4193.2,6.5618051]
[1758598268645,0.02,4193.9,4193.2,4.177]
[1758598268845,0.02,4193.9,4193.4,2.38464819]
[1758598269044,0.7136,4193.9,4193.2,4.177]
[1758598269271,0.7136,4193.9,4193.3,0.02384756]
[1758598269472,0.7136,4193.9,4193.2,4.177]
[1758598269738,0.7136,4193.9,4193.3,2.38474561]
[1758598269942,0.7136,4193.9,4193.3,2.38470672]
[1758598270143,0.7136,4193.9,4193.2,4.177]
[1758598270473,0.7136,4193.9,4193.5,2.38462621]
[1758598270676,0.02,4193.9,4192.9,4.171]
[1758598270881,0.02,4193.9,4193.6,2.38453699]
[1758598271092,0.02,4193.9,4193.7,2.38452028]
[1758598271294,0.02,4193.9,4193.8,2.38447231]
[1758598271599,0.02,4193.9,4193.6,2.38457688]
[1758598271889,0.02,4193.9,4193.3,0.26144756]
[1758598272095,0.02,4193.9,4193.8,2.38447231]
[1758598272791,0.02,4193.9,4193.8,3.04997231]
[1758598273157,1e-08,4193.9,4193.8,3.84197231]
[1758598273359,1e-08,4193.9,4193.8,3.04997231]
[1758598274186,1e-08,4193.9,4193.8,2.62207231]
[1758598274375,1e-08,4193.9,4193.8,9.28697231]
[1758598275099,1e-08,4193.9,4193.8,8.62047231]
[1758598275800,1e-08,4193.9,4193.8,6.236]
[1758598276173,0.69760001,4193.9,4193.8,6.236]
[1758598276505,1e-08,4193.9,4193.8,6.236]
[1758598277003,0.69760001,4193.9,4193.8,4.173]
[1758598277804,0.69760001,4193.9,4192.1,2.4054148]
[1758598277978,2.38476075,4193.3,4192.2,4.99036471]
[1758598278173,0.6976,4193.2,4192.2,2.605]
[1758598278393,3.08247344,4193.1,4192.2,2.605]
[1758598278628,0.6976,4193.0,4192.2,2.605]
[1758598279184,0.2362,4192.9,4192.2,2.605]
[1758598279405,0.6976,4192.9,4192.2,2.605]
[1758598279714,0.54445363,4192.8,4192.2,2.605]
[1758598279932,0.2362,4192.8,4192.2,2.605]
[1758598280216,2.62124222,4192.8,4192.2,2.605]
[1758598280516,0.6976,4192.7,4192.1,0.02]
[1758598281498,2.38515479,4192.6,4192.1,0.02]
[1758598281702,2.38521729,4192.5,4192.1,0.02]
[1758598281898,0.30828173,4192.4,4192.1,0.02]
[1758598282123,2.38538237,4192.2,4192.1,0.02]
[1758598282355,3.25078489,4192.2,4192.1,0.02]
[1758598282529,3.94838489,4192.2,4192.1,0.02]
[1758598282902,6.94838489,4192.2,4192.1,0.02]
[1758598283213,9.39122249,4192.2,4192.1,0.02]
[1758598283608,15.62222249,4192.2,4192.1,0.02]
[1758598284131,13.55922249,4192.2,4192.1,0.02]
[1758598284293,15.62222249,4192.2,4192.1,0.02]
[1758598284817,13.23684012,4192.2,4192.1,0.02]
[1758598285025,0.86540252,4192.2,4192.1,0.02]
[1758598285342,0.83065872,4192.2,4192.1,0.02]
[1758598285539,1.56322448,4192.2,4192.1,0.02]
[1758598285693,3.43804572,4192.2,4192.1,0.02]
[1758598285892,10.18160685,4192.2,4192.1,0.02]
[1758598286140,15.62444445,4192.2,4192.1,0.02]
[1758598286340,16.47676799,4192.2,4192.1,0.02]
[1758598286851,16.47676799,4192.2,4191.1,0.02]
[1758598286852,2.38595151,4191.2,4191.1,0.02]
[1758598287021,2.51912943,4191.2,4191.1,0.02]
[1758598287354,0.83077792,4191.2,4191.1,0.02]
[1758598287511,0.51056113,4191.3,4191.1,0.02]
[1758598287715,0.4614,4191.5,4191.1,0.02]
[1758598287914,0.13310595,4191.4,4191.1,0.02]
[1758598288544,0.1192,4191.3,4191.1,0.02]
[1758598288914,1.02262559,4191.3,4191.1,0.02]
[1758598289172,0.13306376,4191.2,4191.1,0.02]
[1758598289333,1.65018672,4191.3,4191.1,0.02]
[1758598289653,3.52552769,4191.3,4191.1,0.02]
[1758598289875,0.77025277,4191.2,4191.1,0.02]
[1758598290218,3.98684434,4191.2,4191.1,0.02]
[1758598290419,4.4977635,4191.2,4191.1,0.02]
[1758598290816,4.71945793,4191.2,4191.1,0.02]
[1758598291252,8.89845793,4191.2,4191.1,0.02]
[1758598291559,10.96145793,4191.2,4191.1,0.02]
[1758598291715,4.71945793,4191.2,4191.1,0.02]
[1758598291919,10.96145793,4191.2,4191.1,0.02]
[1758598292141,1.63590642,4191.2,4191.1,0.02]
[1758598292419,4.53373449,4191.2,4191.1,0.02]
[1758598292615,4.82295922,4191.2,4191.1,0.02]
[1758598293131,7.20876568,4191.2,4191.1,0.02]
[1758598293325,7.90632919,4191.2,4191.1,0.02]
[1758598293549,3.72732919,4191.2,4191.1,0.02]
[1758598293762,10.11392976,4191.2,4191.1,0.02]
[1758598293964,10.84629214,4191.2,4191.1,0.02]
[1758598294341,4.60429214,4191.2,4191.1,0.02]
[1758598294573,10.62484892,4191.2,4191.1,0.02]
[1758598294735,10.84621264,4191.2,4191.1,0.02]
[1758598294935,10.84621173,4191.2,4191.1,0.02]
[1758598295169,10.8462108,4191.2,4191.1,0.02]
[1758598295367,10.62484892,4191.2,4191.1,0.02]
[1758598295665,10.84613287,4191.2,4191.1,0.02]
[1758598296085,4.60413287,4191.2,4191.1,0.02]
[1758598296275,10.62284892,4191.2,4191.1,0.02]
[1758598296638,3.68524892,4191.2,4191.1,0.02]
[1758598296868,9.41232976,4191.2,4191.1,0.02]
[1758598297065,10.62084892,4191.2,4191.1,0.02]
[1758598297641,11.23489741,4191.2,4190.1,0.02]
[1758598297938,2.38652092,4190.2,4190.1,0.02]
[1758598298153,8.62252092,4190.2,4190.1,0.02]
[1758598298361,9.32012092,4190.2,4190.1,0.02]
[1758598299796,9.9336,4190.2,4189.1,0.02]
[1758598299974,3.64217895,4190.1,4189.1,0.02]
[1758598300291,2.4428376,4190.0,4189.2,3.06767939]
[1758598300444,0.1192,4189.4,4189.3,0.239]
[1758598300643,0.1192,4189.4,4189.3,0.6806]
[1758598301215,0.1192,4189.4,4189.3,3.06763363]
[1758598301601,4.2922,4189.8,4189.4,2.38693971]
[1758598301806,4.2922,4189.8,4189.5,3.06751816]
[1758598302120,4.2922,4189.8,4189.6,0.239]
[1758598302416,3.0,4190.9,4189.7,0.6806]
[1758598302716,2.38654503,4190.2,4189.7,0.239]
[1758598302919,0.1192,4189.8,4189.4,0.239]
[1758598303118,0.1192,4189.8,4189.5,0.239]
[1758598303292,4.175,4190.1,4189.5,0.239]
[1758598303813,6.56159875,4190.1,4189.5,0.239]
[1758598304011,6.56157881,4190.1,4189.5,0.239]
[1758598304216,4.83115788,4190.1,4189.5,0.239]
[1758598304417,4.174,4190.0,4189.6,2.82845739]
[1758598304600,4.2932,4190.0,4189.7,0.6806]
[1758598304804,4.2932,4190.0,4189.7,3.06738789]
[1758598305118,0.1192,4190.0,4189.8,0.6806]
[1758598305316,0.1192,4190.0,4189.7,2.38678789]
[1758598305500,0.1192,4190.0,4189.9,0.6884]
[1758598305705,0.1192,4190.0,4189.3,0.1192]
[1758598305873,0.42932,4190.0,4189.1,0.02]
[1758598306078,0.81790976,4189.9,4189.1,0.02]
[1758598306296,2.38698705,4189.4,4189.1,0.02]
[1758598306497,4.173,4189.3,4189.1,0.02]
[1758598307001,2.38709061,4189.2,4189.1,0.02]
[1758598307398,3.95064177,4189.2,4189.1,0.02]
[1758598308234,4.85776356,4189.2,4189.1,0.02]
[1758598308815,8.71012776,4189.2,4189.1,0.02]
[1758598309000,14.09376356,4189.2,4189.1,0.02]
[1758598309634,15.37416764,4189.2,4189.1,0.02]
[1758598309808,14.09376356,4189.2,4189.1,0.02]
[1758598310151,8.34496356,4189.2,4189.1,0.02]
[1758598310355,10.86206356,4189.2,4189.1,0.02]
[1758598310498,11.09376356,4189.2,4189.1,0.02]
[1758598310702,30.58207504,4189.2,4189.1,0.02]
[1758598311307,31.86256162,4189.2,4189.1,0.02]
[1758598312952,24.94176162,4189.2,4189.1,0.02]
[1758598313106,26.58938976,4189.2,4189.1,0.02]
[1758598313311,28.97648037,4189.2,4189.1,0.02]
[1758598313852,29.66128037,4189.2,4189.1,0.02]
[1758598314058,28.97648037,4189.2,4189.1,0.02]
[1758598314563,0.86807828,4189.2,4189.1,0.2574]
[1758598314715,4.81575649,4189.2,4189.1,0.7084]
[1758598315453,0.64575649,4189.2,4189.1,3.09554759]
[1758598315865,0.64579858,4189.2,4189.1,0.7084]
[1758598316166,0.1192,4189.8,4189.6,2.38685802]
[1758598316357,0.64627671,4189.7,4189.5,2.38688993]
[1758598316658,0.64627671,4189.6,4189.5,2.38688993]
[1758598317554,0.64627671,4189.6,4189.5,3.07528993]
[1758598319537,0.86907301,4189.6,4189.5,0.6884]
[1758598320270,0.86907301,4189.6,4189.5,3.07531968]
[1758598320560,4.163,4190.2,4189.9,2.38668368]
[1758598320763,0.64702807,4190.1,4190.0,3.07503484]
[1758598321131,0.64702807,4190.1,4190.0,0.6884]
[1758598321331,0.64702807,4190.1,4190.0,3.07503484]
[1758598322066,0.64702807,4190.1,4190.0,3.19423484]
[1758598322235,4.161,4190.6,4190.4,2.38638002]
[1758598322569,0.8697103,4190.5,4190.0,0.1192]
[1758598322748,0.8697103,4190.4,4190.0,0.1192]
[1758598322931,4.80793389,4190.3,4189.3,0.2374]
[1758598323134,5.03072728,4190.2,4189.7,2.3867935]
[1758598323435,0.86972693,4190.1,4189.8,0.2374]
[1758598323745,0.64693389,4190.0,4189.9,0.2374]
[1758598323955,0.64693389,4190.0,4189.6,2.38683826]
[1758598324158,0.64693389,4189.9,4189.5,2.38687666]
[1758598324467,0.51338543,4189.8,4189.7,2.38680573]
[1758598324642,4.165,4190.4,4189.9,2.38665551]
[1758598324858,0.86986613,4190.3,4190.0,0.6884]
[1758598325049,0.86986613,4190.2,4189.7,0.2374]
[1758598325366,0.64705263,4190.1,4190.0,2.38663484]
[1758598325567,0.64705263,4190.1,4189.7,0.2374]
[1758598325779,0.64705263,4190.0,4189.4,2.38696891]
[1758598325932,3.02714926,4190.3,4189.4,2.38696891]
[1758598325933,0.64705263,4189.9,4189.4,0.2374]
[1758598326130,0.64705263,4189.8,4189.5,0.2374]
[1758598326334,4.167,4190.1,4189.2,2.38709061]
[1758598326335,0.64708847,4189.7,4189.2,2.38709061]
[1758598326573,4.167,4190.1,4189.1,0.02]
[1758598326574,4.167,4190.1,4189.6,0.2374]
[1758598326887,4.167,4190.1,4189.2,0.2374]
[1758598326888,0.86995066,4190.0,4189.2,0.2374]
[1758598327174,0.86995066,4189.9,4189.3,2.38698156]
[1758598327381,0.86998199,4189.8,4189.6,2.38680841]
[1758598327533,0.647115,4189.7,4189.5,2.38690744]
[1758598327736,0.647115,4189.6,4189.5,2.38690744]
[1758598327979,0.51341361,4189.6,4189.5,3.09917663]
[1758598328278,4.80464624,4190.4,4190.1,2.38652261]
[1758598328447,0.86992629,4190.3,4190.2,2.38648273]
[1758598328779,0.64064624,4191.0,4190.0,0.02386634]
[1758598328949,0.001,4190.6,4190.5,2.38635007]
[1758598329131,0.001,4190.6,4190.5,6.78875007]
[1758598329335,0.001,4190.6,4190.5,7.23975007]
[1758598330938,0.001,4190.6,4190.5,6.78875007]
[1758598331287,0.001,4190.6,4190.0,0.2374]
[1758598331487,0.001,4190.6,4190.5,2.38635007]
[1758598332089,0.001,4190.6,4190.5,3.07475007]
[1758598332660,22.6938409,4190.6,4189.3,0.004]
[1758598333002,22.6938409,4190.6,4189.4,0.451]
[1758598333003,0.1192,4189.9,4189.4,0.451]
[1758598333298,0.001,4190.6,4190.5,2.38635007]
[1758598333507,0.001,4190.6,4190.5,7.30161357]
[1758598333671,0.001,4190.6,4190.5,7.27775007]
[1758598334403,0.001,4190.6,4190.5,11.06975007]
[1758598334960,0.001,4190.6,4190.5,6.07475007]
[1758598335166,0.001,4190.6,4190.5,13.13875007]
[1758598336070,0.001,4190.6,4190.5,6.07475007]
[1758598336288,0.001,4190.6,4190.5,9.34875007]
[1758598337806,0.001,4190.6,4190.5,10.14075007]
[1758598338005,0.001,4190.6,4190.5,9.34875007]
[1758598338206,0.001,4190.6,4190.5,10.14075007]
[1758598338391,0.001,4190.6,4190.5,13.14075007]
[1758598338705,0.001,4190.6,4188.7,0.71700264]
[1758598338906,0.001,4190.6,4189.4,7.30577665]
[1758598339093,0.001,4190.6,4190.0,2.38662646]
[1758598339279,0.001,4190.6,4189.9,4.233]
[1758598339480,0.001,4190.6,4190.5,2.38635007]
[1758598340012,0.001,4190.6,4190.5,3.08315007]
[1758598340375,0.001,4190.6,4190.5,2.38635007]
[1758598340707,0.001,4190.6,4190.5,6.62835007]
[1758598341276,0.001,4190.6,4190.5,6.85595007]
[1758598341677,0.001,4190.6,4190.5,6.62835007]
[1758598343199,0.001,4190.6,4190.5,6.74755007]
[1758598343710,0.6573,4190.6,4190.3,0.1192]
[1758598343911,0.6563,4190.5,4190.4,6.62638717]
[1758598344476,0.6563,4190.5,4190.4,4.24]
[1758598344776,0.001,4190.6,4190.5,2.38635007]
[1758598345373,0.001,4190.6,4190.5,2.50555007]
[1758598345578,0.001,4190.6,4190.5,2.73315007]
[1758598345813,0.001,4190.6,4190.5,6.74355007]
[1758598346111,0.001,4190.6,4190.5,4.3572]
[1758598346341,0.001,4190.6,4190.5,6.74355007]
[1758598346498,0.001,4190.6,4190.5,4.237]
[1758598346821,0.6573,4190.6,4190.5,6.62335007]
[1758598346971,0.001,4190.6,4190.5,6.62335007]
[1758598347481,0.001,4190.6,4190.5,6.85095007]
[1758598347685,0.001,4190.6,4190.5,7.32015007]
[1758598347896,0.001,4190.6,4190.5,6.62335007]
[1758598348812,0.001,4190.6,4190.5,7.32015007]
[1758598349111,0.001,4190.6,4190.5,6.62335007]
[1758598349419,0.001,4190.6,4190.5,4.237]
[1758598349613,0.6573,4190.6,4190.1,0.004]
[1758598349781,0.6563,4190.5,4190.3,4.237]
[1758598349980,2.68062918,4190.4,4190.3,4.237]
[1758598350549,0.1192,4190.3,4190.1,4.241]
[1758598350765,0.7755,4190.3,4190.1,4.241]
[1758598350970,0.1192,4190.3,4190.2,2.38652092]
[1758598351170,0.1192,4190.3,4190.1,6.62757544]
[1758598351342,0.348,4190.3,4190.1,6.62757544]
[1758598351532,0.6563,4190.2,4190.1,4.241]
[1758598351856,3.39940413,4190.2,4190.1,0.004]
[1758598352042,3.75126454,4190.2,4190.1,0.004]
[1758598352349,1.36474362,4190.2,4190.1,0.004]
[1758598352553,1.01281873,4190.2,4190.1,0.004]
[1758598353155,3.39933965,4190.2,4190.1,0.004]
[1758598353455,2.38682481,4189.7,4189.3,0.004]
[1758598353665,0.5134366,4189.9,4189.3,0.004]
[1758598353849,0.1192,4189.5,4189.4,2.38692241]
[1758598354337,0.001,4190.6,4189.9,2.38664113]
[1758598354551,0.1192,4190.4,4190.0,4.232]
[1758598354719,0.1192,4190.4,4189.7,0.1192]
[1758598354720,0.6563,4190.3,4189.7,0.1192]
[1758598354924,2.38065313,4190.2,4189.3,1.413]
[1758598355125,0.1192,4189.7,4189.3,1.413]
[1758598355433,0.35639539,4190.0,4189.3,0.004]
[1758598355824,0.35639539,4190.0,4189.3,2.3910299]
[1758598356025,22.50978625,4189.9,4189.3,0.004]
[1758598356225,2.33794071,4189.8,4189.3,0.004]
[1758598356652,0.6563,4189.7,4189.3,0.004]
[1758598356848,0.6563,4189.7,4189.3,0.02787033]
[1758598356849,0.1192,4189.7,4189.3,0.02787033]
[1758598357053,0.6563,4190.9,4189.4,0.2276]
[1758598357249,0.1192,4190.3,4190.1,2.38653322]
[1758598357961,0.1192,4190.3,4190.2,2.38652092]
[1758598358159,0.1192,4190.3,4190.1,2.38656638]
[1758598358335,0.6563,4190.2,4190.0,4.235]
[1758598358871,0.2288,4190.1,4189.8,2.38673995]
[1758598359080,19.58599181,4189.9,4189.3,4.238]
[1758598359378,0.1192,4189.5,4189.3,0.004]
[1758598359728,0.6563,4189.4,4189.3,0.004]
[1758598360026,1.0126805,4189.4,4189.3,0.004]
[1758598360230,3.09014848,4189.4,4189.3,0.004]
[1758598360557,2.95650246,4189.4,4189.3,0.004]
[1758598360758,5.34347911,4189.4,4189.3,0.004]
[1758598360938,2.95650246,4189.4,4189.3,0.004]
[1758598361874,2.30020246,4189.4,4189.3,0.004]
[1758598362051,0.4275,4189.4,4189.3,0.004]
[1758598362378,0.6563,4189.4,4189.3,0.004]
[1758598362692,0.2288,4189.9,4189.3,0.004]
[1758598362852,0.1192,4189.5,4189.3,2.39102094]
[1758598363053,0.1192,4189.5,4189.4,2.38697665]
[1758598363878,0.1192,4189.5,4189.3,0.2316]
[1758598363879,2.38697665,4189.4,4189.3,0.004]
[1758598364091,2.38697665,4189.4,4188.9,0.004]
[1758598364092,1.878106,4189.4,4188.9,0.004]